fUSD/lending_fUSD_20240925
["ID","MTS","AMOUNT","RATE_DAILY","PERIOD"]
[339175875,1727274669664,-465.93784607,0.00012999,2]
[339175876,1727274669674,-2128.91,0.00012999,2]
[339175877,1727274669682,-2128.91,0.00012999,2]
[339175878,1727274669691,-2128.91,0.00012999,2]
[339175879,1727274669700,-2128.91,0.00012999,2]
[339175880,1727274669710,-2128.91,0.00012999,2]
[339175881,1727274669718,-2128.91,0.00012999,2]
[339175882,1727274669727,-954.13006223,0.00012999,2]
[339175883,1727274669738,-1174.77993777,0.00012999,2]
[339175884,1727274669751,-2129.09692595,0.00012999,2]
[339175885,1727274669761,-500.0,0.00012999,2]
[339175886,1727274669777,-500.0,0.00012999,2]
[339175887,1727274669787,-500.0,0.00012999,2]
[339175888,1727274669796,-500.0,0.00012999,2]
[339175889,1727274669806,-500.0,0.00012999,2]
[339175890,1727274669816,-266.32008834,0.00012999,2]
[339175891,1727274669825,-500.0,0.00012999,2]
[339175892,1727274669834,-500.0,0.00012999,2]
[339175893,1727274669843,-500.0,0.00012999,2]
[339175894,1727274669852,-500.0,0.00012999,2]
[339175895,1727274669861,-500.0,0.00012999,2]
[339175896,1727274669871,-500.0,0.00012999,2]
[339175897,1727274669880,-421.38139247,0.00012999,2]
[339175898,1727274669889,-837.81,0.00012999,2]
[339175899,1727274669898,-837.81,0.00012999,2]
[339175900,1727274669907,-837.81,0.00012999,2]
[339175901,1727274669916,-837.81,0.00012999,2]
[339175902,1727274669925,-837.81,0.00012999,2]
[339175903,1727274669934,-837.81,0.00012999,2]
[339175904,1727274669943,-837.81,0.00012999,2]
[339175905,1727274669953,-837.81,0.00012999,2]
[339175906,1727274669962,-837.89,0.00012999,2]
[339175907,1727274669971,-150.0,0.00012999,2]
[339175908,1727274669980,-9801.53741056,0.00013,2]
[339175909,1727274669991,-726.22550044,0.00013,2]
[339175910,1727274670002,-2115.21333873,0.00013,2]
[339175911,1727274670012,-504.46416423,0.00013,2]
[339175912,1727274670023,-1248.44836574,0.00013,2]
[339175913,1727274670037,-974.16207443,0.00013,2]
[339175914,1727274670048,-399.08923112,0.00013,2]
[339175915,1727274670059,-1470.87908501,0.00013,2]
[339175916,1727274670070,-12814.5844385,0.00013,2]
[339175917,1727274670081,-10006.37556363,0.00013,2]
[339175918,1727274670092,-3974.5,0.00013,2]
[339175919,1727274670103,-449.59669731,0.00013,2]
[339175920,1727274670434,-500.0,0.00012876,2]
[339175921,1727274670444,-500.0,0.00012876,2]
[339175922,1727274670454,-500.0,0.00012876,2]
[339175923,1727274670464,-500.0,0.00012876,2]
[339175924,1727274670473,-500.0,0.00012889,2]
[339175925,1727274670485,-500.0,0.00012889,2]
[339175926,1727274670495,-536.19,0.00012893,2]
[339175927,1727274670505,-500.0,0.00012893,2]
[339175928,1727274670514,-155.35630971,0.00012896,2]
[339175929,1727274670691,-500.0,0.00012898,2]
[339175930,1727274670701,-333.23130448,0.00012898,2]
[339175931,1727274670712,-166.76869552,0.00012898,2]
[339175932,1727274670721,-500.0,0.00012898,2]
[339175933,1727274670730,-500.0,0.00012996,2]
[339175934,1727274670739,-500.0,0.00012997,2]
[339175935,1727274670749,-500.0,0.00012997,2]
[339175936,1727274670758,-500.0,0.00012997,2]
[339175937,1727274670768,-500.0,0.00012997,2]
[339175938,1727274670777,-500.0,0.00012997,2]
[339175939,1727274670786,-500.0,0.00012997,2]
[339175940,1727274670795,-500.0,0.00012997,2]
[339175941,1727274670804,-500.0,0.00012998,2]
[339175942,1727274670813,-500.0,0.00012998,2]
[339175943,1727274670823,-500.0,0.00012998,2]
[339175944,1727274670832,-500.0,0.00012998,2]
[339175945,1727274670841,-500.0,0.00012998,2]
[339175946,1727274670851,-500.0,0.00012998,2]
[339175947,1727274670860,-500.0,0.00012998,2]
[339175948,1727274670869,-500.0,0.00012998,2]
[339175949,1727274670879,-500.0,0.00012998,2]
[339175950,1727274670892,-500.0,0.00012998,2]
[339175951,1727274670903,-500.0,0.00012998,2]
[339175952,1727274670914,-500.0,0.00012998,2]
[339175953,1727274670924,-355.86826711,0.00012998,2]
[339175954,1727274670935,-500.0,0.00012999,2]
[339175955,1727274670944,-500.0,0.00012999,2]
[339175956,1727274670955,-48556.97049643,0.00013,2]
[339175957,1727274670965,-13256.80232038,0.00013,2]
[339175958,1727274670982,-300.0,0.00012998,2]
[339175959,1727274671141,-500.0,0.00012876,2]
[339175960,1727274671150,-500.0,0.00012876,2]
[339175961,1727274671159,-500.0,0.00012876,2]
[339175962,1727274671169,-500.0,0.00012889,2]
[339175963,1727274671177,-285.84891763,0.00012893,2]
[339175964,1727274671188,-214.15108237,0.00012893,2]
[339175965,1727274671197,-129.53557259,0.00012998,2]
[339175966,1727274671212,-70.46442741,0.00012998,2]
[339175967,1727274671221,-500.0,0.00012999,2]
[339175968,1727274671230,-41.87862321,0.00012999,2]
[339175969,1727274671241,-451.23409272,0.00012999,2]
[339175970,1727274671257,-383.355,0.00012893,2]
[339175971,1727274671268,-116.645,0.00012893,2]
[339175972,1727274671277,-6.88728407,0.00012999,2]
[339175973,1727274671287,-392.3040694,0.00012999,2]
[339175974,1727274671886,-500.0,0.00012876,2]
[339175975,1727274671896,-107.6959306,0.00012999,2]
[339175976,1727274671908,-500.0,0.00012999,2]
[339175977,1727274671917,-500.0,0.00012999,2]
[339175978,1727274671926,-500.0,0.00012999,2]
[339175979,1727274671940,-431.46045769,0.00012999,2]
[339175980,1727274671956,-364.95,0.00012999,2]
[339175981,1727274671971,-552193.93511518,0.00013,2]
[339175982,1727274671987,-670.56,0.00013,2]
[339175984,1727274699449,500.0,0.00010082,2]
[339175986,1727274712546,500.0,0.00010082,2]
[339175987,1727274779926,152.76,9.589e-05,2]
[339175988,1727274801430,200.0,0.00020616,120]
[339175990,1727274962324,500.0,0.00010082,2]
[339175991,1727274982841,-500.0,0.00011452,2]
[339175992,1727274997371,500.0,0.00010082,2]
[339175993,1727275017590,263.24,9.996e-05,2]
[339175994,1727275032722,175.45,0.00010959,2]
[339175995,1727275059559,-251.81004685,0.00011443,2]
[339175996,1727275059581,-250.0,0.00011868,2]
[339175997,1727275059602,-1000.0,0.00011896,2]
[339175998,1727275102284,500.0,0.00010082,2]
[339175999,1727275118783,2220.505095,0.0001,2]
[339176000,1727275149335,500.0,0.00010082,2]
[339176001,1727275201751,500.0,0.00010082,2]
[339176002,1727275238069,305.27,0.00013918,30]
[339176003,1727275326991,724.06,0.00010959,2]
[339176004,1727275346540,162.3,9.589e-05,2]
[339176007,1727275514661,2273.59,0.00011105,2]
[339176008,1727275522540,3314.04160727,0.00011,2]
[339176015,1727275555608,159.76,0.00011072,2]
[339176016,1727275581605,1386.31,0.00011062,2]
[339176017,1727275602725,321.47,9.204e-05,2]
[339176018,1727275607020,2915.78629436,0.00011094,2]
[339176019,1727275627043,200.0,0.00011088,2]
[339176082,1727275632829,156.93,0.00010959,2]
[339176296,1727275663300,3882.29,0.00011105,2]
[339176301,1727275750592,898.16,0.00011103,2]
[339176302,1727275766728,497.24,0.00011108,2]
[339176303,1727275803128,163.87,0.000111,2]
[339176322,1727275831951,-150.0,0.00011111,2]
[339176325,1727275831962,-250.0,0.00011141,2]
[339176329,1727275831972,-796.42,0.00011194,2]
[339176331,1727275831982,-170.51932731,0.00011221,2]
[339176333,1727275831991,-150.0,0.00011315,2]
[339176335,1727275832001,-4770.98783718,0.00011315,2]
[339176337,1727275832013,-1251.78216282,0.00011315,2]
[339176339,1727275832023,-1919.79,0.00011322,2]
[339176341,1727275832034,-101.52996164,0.00011331,2]
[339176344,1727275832052,-198.47003836,0.00011331,2]
[339176346,1727275832063,-1286.0,0.00011332,2]
[339176348,1727275832073,-500.0,0.00011341,2]
[339176350,1727275832085,-142.73160786,0.00011341,2]
[339176352,1727275832097,-1145.07839214,0.00011341,2]
[339176353,1727275832121,-450.01646915,0.00011341,2]
[339176354,1727275832135,-1200.0,0.00011341,2]
[339176355,1727275832148,-11904.72353085,0.00011341,2]
[339176356,1727275832158,-585.5,0.00011341,2]
[339176357,1727275832169,-1500.0,0.00011361,2]
[339176358,1727275832180,-250.0,0.00011396,2]
[339176359,1727275832190,-452.43290421,0.00011404,2]
[339176360,1727275832201,-226.48412703,0.00011413,2]
[339176361,1727275832211,-150.0,0.00011413,2]
[339176362,1727275832221,-39936.1839365,0.00011414,2]
[339176363,1727275832232,-500.0,0.00011452,2]
[339176364,1727275832243,-499.99,0.00011452,2]
[339176365,1727275832253,-321.47,0.00011468,2]
[339176366,1727275832263,-10732.24,0.00011475,2]
[339176367,1727275832274,-500.0,0.00011514,2]
[339176368,1727275832285,-250.0,0.00011564,2]
[339176369,1727275832295,-1852.42,0.00011653,2]
[339176370,1727275832305,-150.0,0.00011688,2]
[339176371,1727275832315,-150.0,0.00011688,2]
[339176373,1727275832325,-150.26667821,0.00011688,2]
[339176375,1727275832337,-150.00000001,0.00011688,2]
[339176378,1727275832348,-150.0,0.00011688,2]
[339176380,1727275832358,-150.0,0.00011688,2]
[339176382,1727275832368,-150.0,0.00011688,2]
[339176384,1727275832378,-221.91101493,0.00011688,2]
[339176386,1727275832388,-150.0,0.00011688,2]
[339176388,1727275832398,-150.0,0.00011688,2]
[339176390,1727275832409,-150.0,0.00011688,2]
[339176392,1727275832420,-150.26592262,0.00011688,2]
[339176394,1727275832430,-2000.7346,0.00011761,2]
[339176396,1727275832439,-903.32,0.0001177,2]
[339176398,1727275832450,-154.98,0.0001177,2]
[339176400,1727275832461,-165.62,0.00011818,2]
[339176402,1727275832471,-3567.2963,0.00011833,2]
[339176404,1727275832482,-23900.0,0.00011861,2]
[339176406,1727275832492,-500.0,0.000119,4]
[339176408,1727275832502,-576.82,0.00011933,2]
[339176409,1727275832513,-2000.0,0.00012,3]
[339176410,1727275832523,-1100.0,0.00012,4]
[339176411,1727275832533,-236.648,0.00012013,2]
[339176412,1727275832543,-236.648,0.00012067,2]
[339176413,1727275832558,-1700.0,0.000121,4]
[339176414,1727275832568,-236.648,0.00012122,2]
[339176415,1727275832578,-236.648,0.00012177,2]
[339176416,1727275832590,-2300.0,0.000122,4]
[339176417,1727275832601,-236.648,0.00012233,2]
[339176418,1727275832612,-5049.47016237,0.00012274,2]
[339176419,1727275832623,-379.6,0.00012287,2]
[339176420,1727275832634,-961.32696,0.00012287,2]
[339176421,1727275832645,-169.286687,0.00012287,2]
[339176422,1727275832654,-239.730328,0.00012287,2]
[339176423,1727275832665,-77.18684874,0.00012287,2]
[339176424,1727275832679,-274.79456326,0.00012287,2]
[339176425,1727275832690,-236.648,0.0001229,2]
[339176426,1727275832700,-2900.0,0.000123,4]
[339176427,1727275832711,-236.648,0.00012346,2]
[339176428,1727275832721,-500.0,0.000124,4]
[339176429,1727275832732,-236.648,0.00012404,2]
[339176430,1727275832743,-379.6,0.0001244,2]
[339176431,1727275832755,-961.32696,0.0001244,2]
[339176432,1727275832766,-351.981412,0.0001244,2]
[339176433,1727275832777,-176.08,0.00012445,2]
[339176434,1727275832789,-236.648,0.00012462,2]
[339176435,1727275832800,-200.0,0.00012474,2]
[339176436,1727275832810,-255.0,0.00012474,2]
[339176437,1727275832820,-497.24,0.00012496,2]
[339176438,1727275832829,-500.0,0.000125,4]
[339176439,1727275832841,-236.648,0.0001252,2]
[339176440,1727275832851,-151.29,0.00012565,2]
[339176441,1727275832862,-1000.0,0.00012576,2]
[339176442,1727275832872,-1586.1466,0.00012576,2]
[339176443,1727275832883,-5743.7965,0.00012576,2]
[339176444,1727275832894,-3167.7590013,0.00012576,2]
[339176445,1727275832904,-346.74496769,0.00012594,2]
[339176446,1727275832916,-32.85503231,0.00012594,2]
[339176447,1727275832928,-961.32696,0.00012594,2]
[339176448,1727275832939,-351.981412,0.00012594,2]
[339176449,1727275832949,-500.0,0.000126,4]
[339176450,1727275832960,-3167.75900128,0.00012612,2]
[339176451,1727275832974,-1026.40361824,0.0001264,2]
[339176452,1727275832986,-3167.75900128,0.00012648,2]
[339176453,1727275832996,-79311.4503,0.00012676,2]
[339176454,1727275833368,-226.0818,0.00012676,2]
[339176455,1727275833379,-453.98842805,0.00012676,2]
[339176456,1727275833390,-17574.4607,0.0001268,2]
[339176457,1727275833400,-3167.75900128,0.00012684,2]
[339176458,1727275833410,-500.0,0.000127,4]
[339176459,1727275833420,-453.988428,0.00012708,2]
[339176460,1727275833430,-3167.75900128,0.0001272,2]
[339176461,1727275833440,-317.85382864,0.00012728,2]
[339176462,1727275833450,-1261.20777757,0.0001274,2]
[339176463,1727275833462,-453.988428,0.0001274,2]
[339176464,1727275833472,-379.6,0.00012747,2]
[339176465,1727275833483,-961.32696,0.00012747,2]
[339176466,1727275833493,-351.981412,0.00012747,2]
[339176467,1727275833504,-4307.29772162,0.0001275,2]
[339176468,1727275833514,-3167.75900128,0.00012756,2]
[339176469,1727275833523,-453.988428,0.00012772,2]
[339176470,1727275833534,-53487.02375915,0.00012776,2]
[339176471,1727275833546,-2776.14219131,0.00012776,2]
[339176472,1727275833558,-43403.29574954,0.00012776,2]
[339176473,1727275833568,-10214.6905,0.00012789,2]
[339176474,1727275833583,-500.0,0.00012789,2]
[339176475,1727275833595,-7500.0,0.00012789,2]
[339176476,1727275833605,-5367.3529,0.00012789,2]
[339176477,1727275833615,-816.77007046,0.00012789,2]
[339176478,1727275833628,-3098.46302415,0.00012789,2]
[339176479,1727275833640,-1463.86250539,0.00012789,2]
[339176480,1727275833650,-588.9124,0.0001279,2]
[339176481,1727275833661,-2122.6584,0.0001279,2]
[339176482,1727275833671,-3167.75900128,0.00012792,2]
[339176483,1727275833681,-401.94,0.00012796,2]
[339176484,1727275833691,-317.7,0.000128,2]
[339176485,1727275833701,-995.26,0.000128,2]
[339176486,1727275833711,-687.15034836,0.000128,4]
[339176487,1727275833724,-612.84965164,0.000128,4]
[339176488,1727275833734,-453.988428,0.00012804,2]
[339176489,1727275833744,-3606.00262546,0.00012805,2]
[339176490,1727275833754,-374.32771655,0.00012807,2]
[339176491,1727275833764,-500.0,0.00012822,2]
[339176492,1727275833774,-500.0,0.00012822,2]
[339176493,1727275833783,-3167.75900128,0.00012828,2]
[339176494,1727275833793,-453.988428,0.00012836,2]
[339176495,1727275833802,-3167.75900128,0.00012864,2]
[339176496,1727275833812,-151.79,0.00012866,2]
[339176497,1727275833822,-453.988428,0.00012868,2]
[339176498,1727275833832,-500.0,0.00012873,2]
[339176499,1727275833843,-500.0,0.00012873,2]
[339176500,1727275833853,-391.80936884,0.00012873,2]
[339176501,1727275833862,-500.0,0.00012873,2]
[339176502,1727275833872,-500.0,0.00012876,2]
[339176503,1727275833883,-500.0,0.00012876,2]
[339176504,1727275833893,-500.0,0.00012876,2]
[339176505,1727275833902,-500.0,0.00012876,2]
[339176506,1727275833912,-500.0,0.00012876,2]
[339176507,1727275833922,-500.0,0.00012876,2]
[339176508,1727275833932,-500.0,0.00012876,2]
[339176509,1727275833942,-500.0,0.00012876,2]
[339176510,1727275833952,-500.0,0.00012876,2]
[339176511,1727275833962,-500.0,0.00012876,2]
[339176512,1727275833972,-500.0,0.00012876,2]
[339176513,1727275833982,-500.0,0.00012876,2]
[339176514,1727275833992,-500.0,0.00012876,2]
[339176515,1727275834002,-500.0,0.00012876,2]
[339176516,1727275834011,-500.0,0.00012876,2]
[339176517,1727275834021,-500.0,0.00012876,2]
[339176518,1727275834030,-500.0,0.00012876,2]
[339176519,1727275834040,-500.0,0.00012876,2]
[339176520,1727275834050,-500.0,0.00012876,2]
[339176521,1727275834059,-500.0,0.00012876,2]
[339176522,1727275834069,-500.0,0.00012876,2]
[339176523,1727275834079,-500.0,0.00012876,2]
[339176524,1727275834090,-500.0,0.00012876,2]
[339176525,1727275834099,-500.0,0.00012876,2]
[339176526,1727275834109,-500.0,0.00012876,2]
[339176527,1727275834128,-500.0,0.00012876,2]
[339176528,1727275834144,-501.19,0.00012876,2]
[339176529,1727275834154,-501.19,0.00012876,2]
[339176530,1727275834165,-512.81,0.00012876,2]
[339176531,1727275834176,-512.81,0.00012876,2]
[339176532,1727275834186,-500.0,0.00012876,2]
[339176533,1727275834196,-500.0,0.00012876,2]
[339176534,1727275834206,-543.82637534,0.00012876,2]
[339176535,1727275834217,-500.0,0.00012876,2]
[339176536,1727275834227,-500.0,0.00012876,2]
[339176537,1727275834239,-500.0,0.00012876,2]
[339176538,1727275834250,-500.0,0.00012876,2]
[339176539,1727275834259,-500.0,0.00012876,2]
[339176540,1727275834270,-500.0,0.00012876,2]
[339176541,1727275834280,-500.0,0.00012876,2]
[339176542,1727275834290,-500.0,0.00012876,2]
[339176543,1727275834300,-500.0,0.00012876,2]
[339176544,1727275834310,-500.0,0.00012876,2]
[339176545,1727275834321,-500.0,0.00012876,2]
[339176546,1727275834331,-500.0,0.00012876,2]
[339176547,1727275834344,-500.0,0.00012876,2]
[339176548,1727275834355,-500.0,0.00012876,2]
[339176549,1727275834365,-500.0,0.00012876,2]
[339176550,1727275834375,-500.0,0.00012876,2]
[339176551,1727275834386,-500.0,0.00012876,2]
[339176552,1727275834396,-500.0,0.00012876,2]
[339176553,1727275834407,-500.0,0.00012876,2]
[339176554,1727275834418,-500.0,0.00012876,2]
[339176555,1727275834428,-500.0,0.00012876,2]
[339176556,1727275834439,-500.0,0.00012876,2]
[339176557,1727275834450,-503.18185285,0.00012876,2]
[339176558,1727275834460,-500.0,0.00012876,2]
[339176559,1727275834470,-500.0,0.00012876,2]
[339176560,1727275834480,-500.0,0.00012876,2]
[339176561,1727275834490,-500.0,0.00012876,2]
[339176562,1727275834500,-500.0,0.00012876,2]
[339176563,1727275834511,-500.0,0.00012876,2]
[339176564,1727275834521,-500.0,0.00012876,2]
[339176565,1727275834531,-500.0,0.00012876,2]
[339176566,1727275834542,-500.0,0.00012876,2]
[339176567,1727275834552,-500.0,0.00012876,2]
[339176568,1727275834567,-500.0,0.00012876,2]
[339176569,1727275834577,-500.0,0.00012876,2]
[339176570,1727275834588,-546.21959765,0.00012876,2]
[339176571,1727275834598,-500.0,0.00012876,2]
[339176572,1727275834609,-500.0,0.00012876,2]
[339176573,1727275834619,-500.0,0.00012876,2]
[339176574,1727275834630,-500.0,0.00012876,2]
[339176575,1727275834640,-500.0,0.00012876,2]
[339176576,1727275834650,-500.0,0.00012876,2]
[339176577,1727275834660,-500.0,0.00012876,2]
[339176578,1727275834670,-500.0,0.00012876,2]
[339176579,1727275834680,-500.0,0.00012876,2]
[339176580,1727275834690,-500.0,0.00012876,2]
[339176581,1727275834700,-500.0,0.00012876,2]
[339176582,1727275834710,-500.0,0.00012876,2]
[339176583,1727275834720,-500.0,0.00012876,2]
[339176584,1727275834730,-500.0,0.00012876,2]
[339176585,1727275834741,-500.0,0.00012876,2]
[339176586,1727275834751,-500.0,0.00012876,2]
[339176587,1727275834762,-500.0,0.00012876,2]
[339176588,1727275834773,-500.0,0.00012876,2]
[339176589,1727275834783,-500.0,0.00012876,2]
[339176590,1727275834793,-500.0,0.00012876,2]
[339176591,1727275834804,-500.0,0.00012876,2]
[339176592,1727275834814,-500.0,0.00012876,2]
[339176593,1727275834825,-500.0,0.00012876,2]
[339176594,1727275834836,-500.0,0.00012876,2]
[339176595,1727275834854,-500.0,0.00012876,2]
[339176596,1727275834864,-500.0,0.00012876,2]
[339176597,1727275834875,-500.0,0.00012876,2]
[339176598,1727275834886,-500.0,0.00012876,2]
[339176599,1727275834896,-500.0,0.00012876,2]
[339176600,1727275834906,-500.0,0.00012876,2]
[339176601,1727275834917,-484.64,0.00012876,2]
[339176602,1727275834927,-500.0,0.00012876,2]
[339176603,1727275834937,-500.0,0.00012876,2]
[339176604,1727275834948,-500.0,0.00012876,2]
[339176605,1727275834958,-500.0,0.00012876,2]
[339176606,1727275834968,-500.0,0.00012876,2]
[339176607,1727275834978,-500.0,0.00012876,2]
[339176608,1727275834989,-500.0,0.00012876,2]
[339176609,1727275835000,-500.0,0.00012876,2]
[339176610,1727275835011,-500.0,0.00012876,2]
[339176611,1727275835021,-500.0,0.00012876,2]
[339176612,1727275835032,-500.0,0.00012876,2]
[339176613,1727275835044,-500.0,0.00012876,2]
[339176614,1727275835054,-500.0,0.00012876,2]
[339176615,1727275835064,-500.0,0.00012876,2]
[339176616,1727275835075,-500.0,0.00012876,2]
[339176617,1727275835085,-500.0,0.00012876,2]
[339176618,1727275835099,-500.0,0.00012876,2]
[339176619,1727275835109,-500.0,0.00012876,2]
[339176620,1727275835119,-500.0,0.00012876,2]
[339176621,1727275835129,-500.0,0.00012876,2]
[339176622,1727275835140,-500.0,0.00012876,2]
[339176623,1727275835150,-500.0,0.00012876,2]
[339176624,1727275835160,-500.0,0.00012876,2]
[339176625,1727275835171,-500.0,0.00012876,2]
[339176626,1727275835182,-500.0,0.00012876,2]
[339176627,1727275835192,-500.0,0.00012876,2]
[339176628,1727275835203,-500.0,0.00012876,2]
[339176629,1727275835217,-500.0,0.00012876,2]
[339176630,1727275835231,-500.0,0.00012876,2]
[339176631,1727275835243,-574.55,0.00012876,2]
[339176632,1727275835253,-500.0,0.00012876,2]
[339176633,1727275835264,-500.0,0.00012876,2]
[339176634,1727275835275,-565.07,0.00012876,2]
[339176635,1727275835290,-500.0,0.00012876,2]
[339176636,1727275835304,-500.0,0.00012876,2]
[339176637,1727275835315,-500.0,0.00012876,2]
[339176638,1727275835325,-554.78,0.00012876,2]
[339176639,1727275835341,-1482.78,0.00012876,2]
[339176640,1727275835352,-1482.78,0.00012876,2]
[339176641,1727275835363,-364.42785256,0.00012876,2]
[339176642,1727275835374,-500.0,0.00012876,2]
[339176643,1727275835384,-500.0,0.00012876,2]
[339176644,1727275835395,-500.0,0.00012876,2]
[339176645,1727275835405,-500.0,0.00012876,2]
[339176646,1727275835416,-504.95049322,0.00012876,2]
[339176647,1727275835426,-500.0,0.00012876,2]
[339176648,1727275835438,-500.0,0.00012876,2]
[339176649,1727275835448,-500.0,0.00012876,2]
[339176650,1727275835459,-481.05296968,0.00012876,2]
[339176651,1727275835470,-500.0,0.00012876,2]
[339176652,1727275835480,-500.0,0.00012876,2]
[339176653,1727275835491,-500.0,0.00012876,2]
[339176654,1727275835501,-500.0,0.00012876,2]
[339176655,1727275835512,-500.0,0.00012876,2]
[339176656,1727275835522,-2076.07,0.00012876,2]
[339176657,1727275835532,-2076.07,0.00012876,2]
[339176658,1727275835543,-500.0,0.00012876,2]
[339176659,1727275835553,-500.0,0.00012876,2]
[339176660,1727275835563,-500.0,0.00012876,2]
[339176661,1727275835574,-500.0,0.00012876,2]
[339176662,1727275835589,-500.0,0.00012876,2]
[339176663,1727275835599,-500.0,0.00012876,2]
[339176664,1727275835610,-500.0,0.00012876,2]
[339176665,1727275835622,-500.0,0.00012876,2]
[339176666,1727275835632,-940.22,0.00012876,2]
[339176667,1727275835643,-940.22,0.00012876,2]
[339176668,1727275835655,-500.0,0.00012876,2]
[339176669,1727275835665,-500.0,0.00012876,2]
[339176670,1727275835675,-500.0,0.00012876,2]
[339176671,1727275835685,-500.0,0.00012876,2]
[339176672,1727275835695,-500.0,0.00012876,2]
[339176673,1727275835706,-500.0,0.00012876,2]
[339176674,1727275835716,-500.0,0.00012876,2]
[339176675,1727275835726,-727.6,0.00012876,2]
[339176676,1727275835737,-727.6,0.00012876,2]
[339176677,1727275835748,-500.0,0.00012876,2]
[339176678,1727275835758,-500.0,0.00012876,2]
[339176679,1727275835768,-500.0,0.00012876,2]
[339176680,1727275835778,-500.0,0.00012876,2]
[339176681,1727275835788,-712.95,0.00012876,2]
[339176682,1727275835798,-712.95,0.00012876,2]
[339176683,1727275835808,-500.0,0.00012876,2]
[339176684,1727275835818,-566.33,0.00012876,2]
[339176685,1727275835829,-500.0,0.00012876,2]
[339176686,1727275835841,-566.33,0.00012876,2]
[339176687,1727275835852,-500.0,0.00012876,2]
[339176688,1727275835862,-280.54762889,0.00012876,2]
[339176689,1727275835872,-500.0,0.00012876,2]
[339176690,1727275835882,-500.0,0.00012876,2]
[339176691,1727275835892,-500.0,0.00012876,2]
[339176692,1727275835902,-500.0,0.00012876,2]
[339176693,1727275835913,-500.0,0.00012876,2]
[339176694,1727275835924,-500.0,0.00012876,2]
[339176695,1727275835934,-500.0,0.00012876,2]
[339176696,1727275835945,-500.0,0.00012876,2]
[339176697,1727275835957,-500.0,0.00012876,2]
[339176698,1727275835967,-500.0,0.00012876,2]
[339176699,1727275835977,-500.0,0.00012876,2]
[339176700,1727275835988,-500.0,0.00012876,2]
[339176701,1727275835997,-500.0,0.00012876,2]
[339176702,1727275836007,-500.0,0.00012876,2]
[339176703,1727275836017,-500.0,0.00012876,2]
[339176704,1727275836027,-500.0,0.00012876,2]
[339176705,1727275836037,-306.53982869,0.00012876,2]
[339176706,1727275836058,-193.46017131,0.00012876,2]
[339176707,1727275836069,-406.63276247,0.00012876,2]
[339176708,1727275836081,-100.37049298,0.00012876,2]
[339176709,1727275836092,-500.0,0.00012876,2]
[339176710,1727275836101,-500.0,0.00012876,2]
[339176711,1727275836111,-500.0,0.00012876,2]
[339176712,1727275836121,-500.0,0.00012876,2]
[339176713,1727275836131,-622.37,0.00012876,2]
[339176714,1727275836140,-361.25950702,0.00012876,2]
[339176715,1727275836157,-138.74049298,0.00012876,2]
[339176716,1727275836167,-500.0,0.00012876,2]
[339176717,1727275836176,-159.27125013,0.00012876,2]
[339176718,1727275836187,-340.72874987,0.00012876,2]